bitfinex/quotes_SOLUSD_20250903
["timestamp","ask_amount","ask_price","bid_price","bid_amount"]
[1756885030777,0.72,209.28,209.26,3.55924621]
[1756885031086,0.72,209.28,209.25,4.49346522]
[1756885031288,0.72,209.28,209.26,3.55925086]
[1756885031587,0.7,209.27,209.25,4.49346522]
[1756885032370,0.7,209.27,209.25,9.27235599]
[1756885033277,0.7,209.27,209.25,4.77889077]
[1756885033581,0.7,209.27,209.25,9.27235599]
[1756885034091,0.7,209.27,209.25,8.33429375]
[1756885034396,19.13935002,209.32,209.25,8.33429375]
[1756885034397,0.7,209.26,209.25,8.33429375]
[1756885034568,4.49346522,209.29,209.25,8.33429375]
[1756885034888,0.7,209.28,209.25,8.33429375]
[1756885035069,0.7,209.27,209.25,8.33429375]
[1756885035391,0.7,209.27,209.25,4.77889077]
[1756885035892,0.7,209.27,209.24,8.04758633]
[1756885036105,0.7,209.26,209.21,26.0]
[1756885036389,0.7,209.25,209.22,8.33496738]
[1756885036578,0.7,209.25,209.23,3.55536349]
[1756885036790,4.49346522,209.26,209.23,3.55536349]
[1756885037091,0.7,209.24,209.22,8.33496738]
[1756885037279,5.19346522,209.26,209.22,8.33496738]
[1756885037486,4.49346522,209.26,209.22,8.33496738]
[1756885037689,5.19346522,209.26,209.22,8.33496738]
[1756885038002,0.7,209.26,209.22,8.33496738]
[1756885038315,0.7,209.26,209.23,8.33466448]
[1756885038606,14.36472025,209.29,209.24,8.04857935]
[1756885038796,15.06472025,209.29,209.24,8.70857935]
[1756885039215,0.7,209.29,209.25,4.49346522]
[1756885039674,4.49346522,209.3,209.25,5.15346522]
[1756885039885,5.19346522,209.3,209.25,5.15346522]
[1756885040084,5.19346522,209.3,209.25,9.93221748]
[1756885040310,4.49346522,209.3,209.25,9.93221748]
[1756885040510,0.7,209.29,209.25,9.93221748]
[1756885040717,5.19346522,209.3,209.25,9.93221748]
[1756885041009,0.7,209.29,209.24,4.49346522]
[1756885041213,0.7,209.29,209.24,8.70923198]
[1756885041709,0.7,209.29,209.24,5.15346522]
[1756885041889,0.7,209.29,209.25,4.77897252]
[1756885042605,0.06,209.26,209.25,5.43897252]
[1756885043008,0.06,209.26,209.25,4.77897252]
[1756885043595,0.06,209.26,209.25,5.43897252]
[1756885043984,0.06,209.26,209.25,9.93243774]
[1756885048995,0.06,209.26,209.25,5.43897252]
[1756885049195,0.06,209.26,209.25,9.93243774]
[1756885051290,0.06,209.26,209.25,13.4884536]
[1756885051692,0.06,209.26,209.25,9.93243774]
[1756885051925,0.06,209.26,209.25,13.4884536]
[1756885052225,0.06,209.26,209.25,5.43897252]
[1756885052392,0.06,209.26,209.25,13.4884536]
[1756885052832,0.06,209.26,209.25,27.08404761]
[1756885052995,14.36128198,209.32,209.3,4.49346522]
[1756885053191,0.7,209.34,209.29,14.25559401]
[1756885053523,0.7,209.34,209.3,5.15346522]
[1756885054216,0.7,209.36,209.31,13.48423915]
[1756885054415,4.49346522,209.37,209.32,4.21317134]
[1756885054723,5.19346522,209.37,209.32,8.70663656]
[1756885055200,5.19346522,209.37,209.32,13.48383853]
[1756885055407,0.7,209.37,209.32,5.43720197]
[1756885055619,5.19346522,209.37,209.32,9.93066719]
[1756885056128,5.19346522,209.37,209.32,13.47960154]
[1756885056311,5.19346522,209.37,209.33,0.66]
[1756885057003,18.85062346,209.38,209.34,0.66]
[1756885057210,56.75062346,209.38,209.33,4.49346522]
[1756885057512,47.13066719,209.38,209.33,9.93051607]
[1756885057696,5.19346522,209.37,209.33,5.43705085]
[1756885058405,4.49346522,209.37,209.3,8.32279159]
[1756885058597,4.49346522,209.37,209.31,0.66]
[1756885058598,4.49346522,209.36,209.31,0.66]
[1756885058793,0.7,209.37,209.31,0.66]
[1756885058794,5.19346522,209.37,209.32,4.49346522]
[1756885058994,0.7,209.36,209.32,4.49346522]
[1756885059409,0.7,209.36,209.32,5.15346522]
[1756885059612,50.79559401,209.38,209.3,8.32279159]
[1756885059613,5.19346522,209.35,209.3,13.47643546]
[1756885059811,55.57165528,209.38,209.3,13.47643546]
[1756885060013,4.49346522,209.35,209.3,13.47643546]
[1756885060212,5.19346522,209.35,209.3,12.81643546]
[1756885060531,4.49346522,209.36,209.31,5.15346522]
[1756885060826,0.7,209.36,209.32,5.15346522]
[1756885061240,5.19346522,209.36,209.32,0.66]
[1756885061622,0.65,209.35,209.3,4.25332221]
[1756885061805,5.14346522,209.34,209.3,3.54332221]
[1756885062005,5.14346522,209.33,209.29,3.54434189]
[1756885062207,42.34346522,209.33,209.28,9.27170247]
[1756885062516,37.2,209.33,209.29,0.71]
[1756885062918,37.85,209.33,209.29,0.71]
[1756885063129,37.85,209.33,209.28,3.54434189]
[1756885063130,4.49346522,209.31,209.28,3.54434189]
[1756885063439,0.65,209.32,209.25,3.57434189]
[1756885063440,4.49346522,209.29,209.25,3.57434189]
[1756885063606,4.49346522,209.28,209.25,0.74]
[1756885063803,4.49346522,209.28,209.25,4.28434189]
[1756885064007,4.49346522,209.28,209.25,0.74]
[1756885064214,4.49346522,209.29,209.25,0.74]
[1756885065409,5.14346522,209.29,209.25,4.28434189]
[1756885065612,13.83127233,209.29,209.25,4.28434189]
[1756885065810,37.2,209.33,209.26,5.20346522]
[1756885066007,51.54128199,209.32,209.28,4.49346522]
[1756885066217,51.54128199,209.32,209.29,0.71]
[1756885066415,51.54128199,209.32,209.28,4.49346522]
[1756885066638,37.18,209.32,209.29,0.71]
[1756885067432,37.18,209.32,209.29,4.77803951]
[1756885067940,37.18,209.32,209.29,8.32649814]
[1756885069135,37.18,209.32,209.3,0.71]
[1756885069317,37.18,209.32,209.31,0.71]
[1756885069527,37.18,209.32,209.3,3.55023809]
[1756885070039,41.67346522,209.32,209.29,3.55023809]
[1756885070225,42.32346522,209.32,209.3,3.55023809]
[1756885070409,41.67346522,209.32,209.3,3.55023809]
[1756885070617,37.18,209.32,209.3,3.55023809]
[1756885070919,37.18,209.32,209.3,8.32792261]
[1756885071144,37.18,209.32,209.31,3.55023809]
[1756885071807,37.18,209.32,209.31,4.26023809]
[1756885073016,4.55346522,209.34,209.31,9.03761931]
[1756885073211,4.55346522,209.34,209.32,0.71]
[1756885073428,2.93244846,209.34,209.32,0.71]
[1756885074037,2.93244846,209.34,209.32,5.48735831]
[1756885074422,2.87244846,209.33,209.31,3.55349104]
[1756885074613,2.87244846,209.33,209.32,3.55349104]
[1756885074814,0.06,209.34,209.32,4.26349104]
[1756885075010,0.06,209.34,209.33,3.55349104]
[1756885077239,0.06,209.34,209.33,22.63623118]
[1756885077417,0.06,209.34,209.33,25.50867964]
[1756885079429,0.06,209.34,209.33,25.50375045]
[1756885080153,0.06,209.34,209.33,21.92130199]
[1756885080355,0.06,209.34,209.33,17.14415586]
[1756885080531,0.06,209.34,209.33,21.92130199]
[1756885080719,0.06,209.34,209.33,9.03570798]
[1756885081159,0.06,209.34,209.33,11.90815644]
[1756885082654,0.06,209.34,209.33,9.03570798]
[1756885082849,0.06,209.34,209.33,11.90815644]
[1756885084241,0.06,209.34,209.33,9.03570798]
[1756885084440,0.06,209.34,209.33,11.90815644]
[1756885085374,0.06,209.34,209.33,9.03570798]
[1756885085541,0.06,209.34,209.33,11.90815644]
[1756885085744,0.06,209.34,209.33,26.26256683]
[1756885086066,15.0044104,209.43,209.37,13.59559401]
[1756885086257,0.65,209.44,209.39,4.77577725]
[1756885086441,0.65,209.43,209.39,8.3243391]
[1756885086643,0.65,209.43,209.4,3.54856185]
[1756885086854,37.81,209.47,209.41,3.54856185]
[1756885087049,2.87244846,209.45,209.42,3.54856185]
[1756885087246,2.87244846,209.45,209.41,3.54856185]
[1756885087247,0.65,209.45,209.41,3.54856185]
[1756885087455,3.52244846,209.44,209.41,3.54856185]
[1756885087866,2.87244846,209.42,209.4,3.54856185]
[1756885088057,2.87244846,209.42,209.39,3.54856185]
[1756885088058,2.87244846,209.41,209.39,3.54856185]
[1756885088256,0.65,209.44,209.39,9.03421353]
[1756885088460,2.87244846,209.43,209.39,5.48565168]
[1756885088657,2.87244846,209.43,209.39,9.03421353]
[1756885089077,0.65,209.44,209.39,9.03421353]
[1756885089374,0.65,209.44,209.39,8.32421353]
[1756885089568,2.87244846,209.43,209.39,9.03421353]
[1756885090070,2.87244846,209.44,209.4,14.30559401]
[1756885090259,2.87244846,209.44,209.41,5.48532114]
[1756885090458,2.87244846,209.44,209.4,13.59559401]
[1756885090662,2.87244846,209.43,209.41,3.54106676]
[1756885091160,0.65,209.44,209.4,14.30559401]
[1756885091375,2.87244846,209.43,209.41,3.5401285]
[1756885091856,0.65,209.44,209.41,3.5401285]
[1756885092056,2.87244846,209.43,209.4,13.59559401]
[1756885092255,2.87244846,209.43,209.4,14.29559401]
[1756885092455,2.87244846,209.43,209.4,19.07106877]
[1756885092658,2.87244846,209.43,209.41,3.5407926]
[1756885093369,0.67,209.42,209.39,13.59559401]
[1756885093566,0.67,209.42,209.4,3.54143431]
[1756885093786,2.87244846,209.43,209.4,3.54143431]
[1756885093959,2.87244846,209.42,209.4,3.54143431]
[1756885094562,3.54244846,209.41,209.37,13.59559401]
[1756885094773,2.87244846,209.39,209.38,3.54328948]
[1756885094977,2.87244846,209.39,209.37,3.54328948]
[1756885095155,2.87244846,209.38,209.37,3.54328948]
[1756885096263,2.87244846,209.4,209.37,9.01943167]
[1756885096479,2.87244846,209.4,209.38,0.7]
[1756885096879,2.87244846,209.4,209.37,3.54328948]
[1756885097059,0.67,209.42,209.37,3.54328948]
[1756885097265,2.87244846,209.4,209.37,3.54328948]
[1756885097481,2.87244846,209.39,209.37,3.54328948]
[1756885097681,2.87244846,209.38,209.37,3.54328948]
[1756885097859,2.87244846,209.38,209.36,3.54328948]
[1756885098066,9.54909288,209.43,209.32,79.7]
[1756885098067,3.54244846,209.37,209.35,3.54328948]
[1756885098273,2.87244846,209.36,209.33,3.54328948]
[1756885098586,2.87244846,209.35,209.34,3.54328948]
[1756885098782,2.87244846,209.36,209.34,3.54328948]
[1756885099080,0.67,209.38,209.34,3.54328948]
[1756885099287,2.87244846,209.36,209.34,3.54328948]
[1756885099487,2.87244846,209.36,209.34,0.7]
[1756885099654,51.40559401,209.4,209.34,0.7]
[1756885099655,2.87244846,209.37,209.35,0.7]
[1756885099858,51.40559401,209.4,209.34,4.77689789]
[1756885100076,2.87244846,209.38,209.35,14.29559401]
[1756885100477,2.87244846,209.38,209.36,4.77646159]
[1756885100683,0.67,209.41,209.37,14.29559401]
[1756885100684,2.87244846,209.41,209.37,14.29559401]
[1756885100884,2.87244846,209.41,209.38,0.7]
[1756885101276,2.87244846,209.41,209.37,13.59559401]
[1756885101476,2.87244846,209.4,209.37,14.29559401]
[1756885101677,2.87244846,209.39,209.37,14.29559401]
[1756885101983,2.87244846,209.39,209.36,4.77646159]
[1756885102165,2.87244846,209.39,209.36,8.32694879]
[1756885102361,2.87244846,209.39,209.36,5.47646159]
[1756885102565,2.87244846,209.39,209.37,0.7]
[1756885103290,2.87244846,209.39,209.36,4.77646159]
[1756885103582,2.87244846,209.39,209.36,9.02694879]
[1756885103792,2.87244846,209.39,209.36,5.47646159]
[1756885104088,2.87244846,209.39,209.36,9.02694879]
[1756885104385,2.87244846,209.39,209.36,5.47646159]
[1756885104591,2.87244846,209.39,209.36,9.02694879]
[1756885104775,2.87244846,209.39,209.36,5.47646159]
[1756885104960,2.87244846,209.39,209.36,8.32694879]
[1756885105161,37.14,209.42,209.37,5.47603941]
[1756885105361,37.81,209.42,209.37,5.47603941]
[1756885105584,2.87244846,209.4,209.37,9.02652661]
[1756885105890,2.87244846,209.4,209.37,5.47603941]
[1756885106094,0.06,209.41,209.38,0.7]
[1756885106281,2.93244846,209.41,209.38,4.2504872]
[1756885106473,2.87244846,209.4,209.39,3.5504872]
[1756885106675,2.93244846,209.41,209.39,3.5504872]
[1756885107187,2.93244846,209.41,209.39,8.32618238]
[1756885107691,0.06,209.41,209.39,8.32618238]
[1756885107871,0.06,209.41,209.4,0.7]
[1756885108195,0.06,209.41,209.4,14.29559401]
[1756885108379,0.06,209.41,209.4,17.84618797]
[1756885109873,0.06,209.41,209.4,22.62173715]
[1756885112494,3.60244846,209.41,209.4,3.55059396]
[1756885112913,2.93244846,209.41,209.4,3.55059396]
[1756885113507,3.60244846,209.41,209.4,3.55059396]
[1756885113880,2.93244846,209.41,209.4,3.55059396]
[1756885114500,3.60244846,209.41,209.4,3.55059396]
[1756885114702,0.06,209.41,209.4,3.55059396]
[1756885114904,2.93244846,209.41,209.4,3.55059396]
[1756885115525,0.06,209.41,209.4,3.55059396]
[1756885115697,0.06,209.41,209.4,9.02614314]
[1756885115893,0.06,209.41,209.4,22.62173715]
[1756885116313,0.06,209.41,209.4,25.49418561]
[1756885116517,0.06,209.41,209.4,22.62173715]
[1756885116692,0.06,209.41,209.4,17.14618797]
[1756885116887,0.06,209.41,209.4,22.62173715]
[1756885119024,0.06,209.41,209.4,17.14618797]
[1756885119803,0.06,209.41,209.4,21.92173715]
[1756885120010,0.06,209.41,209.4,22.62173715]
[1756885124627,2.93244846,209.41,209.4,3.55059396]
[1756885125424,0.06,209.41,209.4,3.55652185]
[1756885125622,2.93244846,209.41,209.4,3.55652185]
[1756885127514,2.93244846,209.41,209.4,4.26652185]
[1756885127832,2.93244846,209.41,209.4,3.55652185]
[1756885128038,0.06,209.41,209.4,3.55652185]
[1756885128620,0.06,209.41,209.4,8.33207103]
[1756885129434,0.06,209.41,209.4,8.99366599]
[1756885130034,0.06,209.41,209.4,3.50811681]
[1756885130855,0.06,209.41,209.4,22.58926]
[1756885132143,0.06,209.41,209.4,25.46170846]
[1756885133235,0.06,209.41,209.4,21.87926]
[1756885133445,0.06,209.41,209.4,8.28366599]
[1756885134145,0.06,209.41,209.4,3.50811681]
[1756885140261,5.2342297,209.41,209.4,3.50811681]
[1756885140558,5.2342297,209.41,209.35,3.50880201]
[1756885140776,4.4842297,209.36,209.32,4.4842297]
[1756885141062,4.4842297,209.37,209.33,13.59559401]
[1756885141246,37.08,209.38,209.36,4.4842297]
[1756885141447,0.06,209.41,209.34,4.80682854]
[1756885141649,0.06,209.41,209.37,4.4842297]
[1756885142047,0.06,209.41,209.38,0.71]
[1756885142464,0.06,209.41,209.39,0.71]
[1756885142847,0.06,209.41,209.4,0.71]
[1756885143348,0.06,209.41,209.39,0.71]
[1756885143545,0.06,209.41,209.4,13.59559401]
[1756885143761,0.06,209.41,209.4,18.78982371]
[1756885143965,0.06,209.41,209.4,14.30559401]
[1756885144471,0.06,209.41,209.4,18.78982371]
[1756885145584,0.06,209.41,209.4,23.56537289]
[1756885147474,0.06,209.41,209.4,18.78982371]
[1756885148270,0.06,209.41,209.4,23.56537289]
[1756885148781,0.06,209.41,209.37,31.1942297]
[1756885149065,0.06,209.41,209.38,18.78982371]
[1756885149450,0.06,209.41,209.38,14.30559401]
[1756885150192,0.06,209.41,209.39,0.71]
[1756885150881,0.06,209.41,209.38,18.37153574]
[1756885151078,0.06,209.41,209.38,19.08153574]
[1756885151279,0.06,209.41,209.39,0.71]
[1756885152184,0.06,209.41,209.36,13.59559401]
[1756885152384,5.2642297,209.41,209.36,14.26559401]
[1756885152886,4.5442297,209.41,209.37,0.67]
[1756885153084,0.72,209.4,209.36,13.59559401]
[1756885153258,4.5442297,209.41,209.36,14.26559401]
[1756885153461,5.2642297,209.41,209.36,14.26559401]
[1756885153678,4.5442297,209.41,209.37,0.67]
[1756885153886,0.06,209.41,209.38,0.67]
[1756885154068,4.5442297,209.41,209.38,0.67]
[1756885154876,0.06,209.41,209.39,5.44577725]
[1756885155070,0.06,209.41,209.4,0.67]
[1756885155461,0.06,209.41,209.37,5.44621421]
[1756885155667,0.06,209.41,209.38,13.59559401]
[1756885155969,0.78,209.41,209.36,18.37195089]
[1756885156168,4.4842297,209.4,209.37,0.67]
[1756885156595,4.5442297,209.41,209.37,0.67]
[1756885156961,5.2642297,209.41,209.37,0.67]
[1756885157394,4.5442297,209.41,209.37,5.44621789]
[1756885157566,0.06,209.41,209.38,0.67]
[1756885158379,0.06,209.41,209.39,0.67]
[1756885159171,0.06,209.41,209.39,5.44576841]
[1756885159794,0.06,209.41,209.39,0.67]
[1756885159994,0.06,209.41,209.38,4.77593498]
[1756885160298,0.06,209.41,209.39,0.67]
[1756885160901,0.06,209.41,209.38,4.77593498]
[1756885161201,0.06,209.41,209.35,14.26559401]
[1756885161202,4.4842297,209.4,209.35,14.26559401]
[1756885161398,4.4842297,209.4,209.36,0.67]
[1756885161706,4.4842297,209.4,209.35,13.59559401]
[1756885161880,4.4842297,209.4,209.36,0.67]
[1756885162579,4.4842297,209.4,209.37,0.67]
[1756885163105,4.4842297,209.4,209.35,14.26559401]
[1756885163280,4.4842297,209.4,209.36,0.67]
[1756885163481,4.4842297,209.4,209.37,0.67]
[1756885163791,0.06,209.41,209.38,0.67]
[1756885164097,0.06,209.41,209.39,13.59559401]
[1756885164304,0.06,209.41,209.37,4.4842297]
[1756885164474,0.06,209.41,209.38,4.77585151]
[1756885164675,0.06,209.41,209.39,13.59559401]
[1756885164989,0.06,209.41,209.39,14.26559401]
[1756885165191,0.06,209.41,209.37,5.44619471]
[1756885165488,4.5442297,209.41,209.37,0.67]
[1756885165695,4.5442297,209.41,209.38,0.67]
[1756885166009,4.4842297,209.4,209.36,0.67]
[1756885166303,4.5442297,209.41,209.37,0.67]
[1756885167402,5.2642297,209.41,209.37,0.67]
[1756885167581,4.5442297,209.41,209.37,0.67]
[1756885168886,5.2642297,209.41,209.37,0.67]
[1756885169085,0.06,209.41,209.37,5.4462149]
[1756885169304,4.5442297,209.41,209.38,0.67]
[1756885170602,4.4842297,209.4,209.35,0.67]
[1756885170805,4.4842297,209.39,209.35,0.67]
[1756885170980,0.06,209.41,209.36,14.26559401]
[1756885171180,4.5442297,209.41,209.37,5.44623346]
[1756885171501,0.06,209.41,209.38,0.67]
[1756885171807,0.06,209.41,209.39,0.67]
[1756885172308,0.06,209.41,209.37,5.44623346]
[1756885172483,0.06,209.41,209.38,0.67]
[1756885174912,4.5442297,209.41,209.38,0.67]
[1756885175505,4.5442297,209.41,209.34,0.03]
[1756885175506,4.4842297,209.39,209.34,0.03]
[1756885175715,4.4842297,209.36,209.34,0.03]
[1756885175884,4.4842297,209.35,209.34,0.03]
[1756885176090,4.4842297,209.36,209.34,0.7]
[1756885176805,14.35441039,209.36,209.35,18.74982371]
[1756885177114,37.06,209.39,209.36,13.59559401]
[1756885177403,14.41509725,209.41,209.39,4.77577725]
[1756885177609,14.41509725,209.41,209.39,5.44577725]
[1756885177793,0.06,209.41,209.39,5.44577725]
[1756885182623,0.06,209.41,209.39,5.48577725]
[1756885184721,0.06,209.41,209.4,0.71]
[1756885185118,0.06,209.41,209.38,4.77597906]
[1756885185320,0.06,209.41,209.34,105.26788884]
[1756885185321,4.4842297,209.4,209.36,13.59559401]
[1756885185501,37.06,209.39,209.37,0.71]
[1756885185822,37.06,209.39,209.38,0.71]
[1756885186195,0.06,209.41,209.38,0.71]
[1756885186414,0.06,209.41,209.39,4.4842297]
[1756885186716,0.06,209.41,209.4,4.4842297]
[1756885186910,0.06,209.41,209.4,5.48554918]
[1756885188036,4.5442297,209.41,209.36,19.0820556]
[1756885188202,5.1942297,209.4,209.36,18.3720556]
[1756885188404,4.4842297,209.4,209.36,19.0820556]
[1756885189031,4.4842297,209.4,209.36,18.3720556]
[1756885189218,4.4842297,209.4,209.37,0.71]
[1756885190430,4.4842297,209.4,209.37,5.48620094]
[1756885190635,0.06,209.41,209.38,0.71]
[1756885190929,37.06,209.39,209.37,4.77620094]
[1756885191108,37.06,209.39,209.37,0.71]
[1756885191904,37.06,209.39,209.38,0.71]
[1756885192519,37.12,209.41,209.39,13.59559401]
[1756885192722,37.12,209.41,209.39,14.30559401]
[1756885192901,37.83,209.41,209.36,9.97069129]
[1756885193233,42.3142297,209.41,209.36,9.97069129]
[1756885193528,40.70083736,209.41,209.37,0.71]
[1756885193898,40.70083736,209.41,209.37,5.48619865]
[1756885195130,40.70083736,209.41,209.36,4.77646159]
[1756885195622,0.71,209.4,209.36,4.77646159]
[1756885195821,2.87083736,209.4,209.36,5.48646159]
[1756885196322,2.87083736,209.4,209.36,4.77646159]
[1756885196526,3.58083736,209.39,209.34,26.03]
[1756885196723,3.58083736,209.39,209.34,14.33559401]
[1756885197237,3.58083736,209.39,209.35,0.71]
[1756885198646,2.87083736,209.38,209.35,0.71]
[1756885198815,2.87083736,209.4,209.34,21.27330997]
[1756885199015,37.06,209.39,209.36,0.71]
[1756885199811,0.06,209.41,209.37,3.58083736]
[1756885200012,37.06,209.4,209.37,3.58083736]
[1756885200214,37.06,209.4,209.35,13.59559401]
[1756885200455,37.06,209.4,209.36,0.71]
[1756885200814,3.58083736,209.39,209.34,0.03]
[1756885201016,2.87083736,209.38,209.34,0.74]
[1756885201231,0.71,209.39,209.35,0.71]
[1756885201232,2.87083736,209.39,209.35,0.71]
[1756885202344,52.12509725,209.4,209.35,0.71]
[1756885202531,52.12509725,209.4,209.36,2.87083736]
[1756885202840,37.06,209.4,209.36,2.87083736]
[1756885203043,37.77,209.4,209.36,2.87083736]
[1756885203338,42.57679958,209.4,209.36,2.87083736]
[1756885203749,41.86679958,209.4,209.35,5.48660895]
[1756885203919,42.57679958,209.4,209.35,5.48660895]
[1756885204124,41.86679958,209.4,209.35,5.48660895]
[1756885204324,0.71,209.39,209.35,5.48660895]
[1756885204746,3.58083736,209.38,209.34,0.03]
[1756885204933,2.87083736,209.37,209.34,0.03]
[1756885205246,37.06,209.36,209.34,0.03]
[1756885205425,37.77,209.36,209.34,0.03]
[1756885206146,37.06,209.36,209.34,0.03]
[1756885206944,0.71,209.35,209.34,0.03]
[1756885207114,3.58083736,209.35,209.34,0.03]
[1756885208035,0.71,209.35,209.34,0.03]
[1756885208927,7.64864342,209.36,209.34,0.03]
[1756885209248,37.06,209.35,209.34,0.03]
[1756885209824,37.77,209.35,209.34,0.03]
[1756885210027,37.06,209.35,209.34,0.03]
[1756885210440,37.77,209.35,209.34,0.03]
[1756885210641,37.06,209.35,209.34,0.03]
[1756885211550,37.72,209.35,209.34,0.03]
[1756885211751,40.59083736,209.35,209.34,0.03]
[1756885211959,45.36860227,209.35,209.34,0.03]
[1756885212332,37.06,209.35,209.34,0.03]
[1756885214061,40.59083736,209.35,209.34,0.03]
[1756885214567,43.19804134,209.35,209.34,0.03]
[1756885215057,40.59083736,209.35,209.34,0.03]
[1756885215346,48.23948777,209.35,209.34,0.03]
[1756885215544,47.57948777,209.35,209.34,0.03]
[1756885215747,48.23948777,209.35,209.34,0.03]
[1756885216131,53.01617752,209.35,209.34,0.03]
[1756885217228,53.30050066,209.35,209.34,0.03]
[1756885218349,11.46381091,209.35,209.34,0.03]
[1756885218726,53.30050066,209.35,209.34,0.03]
[1756885221773,39.93083736,209.35,209.34,0.03]
[1756885222548,40.59083736,209.35,209.34,0.03]
[1756885223168,39.93083736,209.35,209.34,0.03]
[1756885223345,37.08,209.35,209.34,0.7]
[1756885226259,37.08,209.35,209.34,0.03]
[1756885227874,37.06,209.35,209.34,0.7]
[1756885228250,2.87083736,209.39,209.34,0.7]
[1756885228454,30.77732,209.4,209.34,3.57083736]
[1756885228455,37.06,209.38,209.34,3.57083736]
[1756885228758,37.06,209.38,209.35,0.67]
[1756885230374,37.06,209.38,209.36,0.67]
[1756885230678,37.06,209.37,209.36,0.67]
[1756885233397,37.06,209.37,209.34,0.03]
[1756885234280,40.59083736,209.37,209.34,0.03]
[1756885234470,40.65083736,209.37,209.34,0.03]
[1756885234657,39.99083736,209.37,209.34,0.03]
[1756885235556,2.87083736,209.35,209.34,0.03]
[1756885235758,39.93083736,209.35,209.34,0.03]
[1756885236087,40.59083736,209.35,209.34,0.03]
[1756885238588,37.72,209.35,209.34,0.03]
[1756885238889,39.93083736,209.35,209.34,0.03]
[1756885242099,40.62083736,209.35,209.34,0.03]
[1756885242414,45.39752711,209.35,209.34,0.03]
[1756885242984,45.68185025,209.35,209.34,0.03]
[1756885243401,47.59677951,209.35,209.34,0.03]
[1756885244775,44.72594215,209.35,209.34,0.03]
[1756885246203,1.91492926,209.35,209.34,0.68]
[1756885246404,0.06,209.37,209.34,0.68]
[1756885246590,37.06,209.36,209.34,0.68]
[1756885246785,37.06,209.36,209.35,0.65]
[1756885247101,37.06,209.36,209.34,0.03]
[1756885247808,39.93083736,209.36,209.34,0.03]
[1756885249392,37.06,209.36,209.34,0.03]
[1756885250110,5.80167472,209.37,209.34,0.03]
[1756885250310,37.06,209.36,209.34,0.03]
[1756885250686,2.93083736,209.37,209.35,3.52083736]
[1756885250892,0.06,209.37,209.36,3.52083736]
[1756885251091,37.12,209.37,209.36,3.52083736]
[1756885251704,0.06,209.37,209.36,3.52083736]
[1756885251905,37.12,209.37,209.36,3.52083736]
[1756885252086,37.12,209.37,209.36,8.29729895]
[1756885252287,37.12,209.37,209.36,3.52083736]
[1756885253790,37.12,209.37,209.34,2.90083736]
[1756885253990,2.87083736,209.35,209.34,0.03]
[1756885254317,37.06,209.35,209.34,0.03]
[1756885259016,37.06,209.35,209.34,0.68]
[1756885259319,37.06,209.35,209.34,0.03]
[1756885260033,0.06,209.37,209.34,5.1679691]
[1756885260240,37.06,209.35,209.34,0.03]
[1756885261221,47.01465885,209.35,209.34,0.03]
[1756885261548,47.29898199,209.35,209.34,0.03]
[1756885262632,37.06,209.35,209.34,0.03]
[1756885265832,37.06,209.35,209.34,0.68]
[1756885266054,0.06,209.37,209.34,5.1679691]
[1756885266334,37.04,209.36,209.35,5.1379691]
[1756885268737,0.06,209.37,209.35,9.91453959]
[1756885268927,37.04,209.36,209.35,9.26453959]
[1756885269521,37.04,209.36,209.35,9.91453959]
[1756885270945,37.1,209.36,209.35,9.91453959]
[1756885271632,0.06,209.36,209.35,9.91453959]
[1756885271832,37.1,209.36,209.35,9.91453959]
[1756885272146,37.1,209.36,209.35,0.65]
[1756885272318,37.1,209.36,209.34,0.03]
[1756885272927,42.3079691,209.36,209.34,0.03]
[1756885273450,41.5879691,209.36,209.34,0.03]
[1756885274249,37.1,209.36,209.34,0.03]
[1756885275225,41.5879691,209.36,209.34,0.03]